bitfinex-derivatives/quotes_SOLF0:USTF0_20250505
["timestamp","ask_amount","ask_price","bid_price","bid_amount"]
[1746405298816,2.0789,145.04,144.94,24.68]
[1746405299217,6.8955,145.02,144.99,6.8964]
[1746405299615,2.0789,145.04,145.0,6.8959]
[1746405299809,24.68,145.05,144.98,24.68]
[1746405300214,6.8937,145.06,145.03,6.8944]
[1746405300413,26.7991,145.08,144.98,24.68]
[1746405300615,26.7991,145.08,145.02,6.8948]
[1746405300913,6.894,145.05,145.02,6.8948]
[1746405303716,26.7991,145.08,145.03,6.8944]
[1746405304724,6.8935,145.06,145.03,6.8944]
[1746405307014,26.7991,145.08,144.98,24.68]
[1746405307221,24.68,145.11,144.98,385.68]
[1746405307608,6.8921,145.09,145.06,6.893]
[1746405308411,6.8916,145.1,145.07,6.8926]
[1746405309324,6.892,145.09,145.05,6.8935]
[1746405312123,6.892,145.09,145.06,6.8933]
[1746405312724,6.8916,145.1,145.06,6.8933]
[1746405315729,6.892,145.09,145.06,6.8933]
[1746405316720,6.8925,145.08,145.05,6.8936]
[1746405317226,6.8925,145.08,145.04,24.68]
[1746405318122,6.8921,145.09,145.06,6.8933]
[1746405318329,24.68,145.11,145.04,24.68]
[1746405318527,6.2285,145.13,145.04,24.68]
[1746405318728,6.8916,145.1,145.07,6.8925]
[1746405318927,6.2285,145.13,145.04,24.68]
[1746405319329,6.892,145.09,145.06,6.8929]
[1746405320528,6.8924,145.08,145.06,6.8929]
[1746405322328,6.8924,145.08,145.05,6.8935]
[1746405322530,6.8924,145.08,145.04,24.68]
[1746405322730,6.892,145.09,145.04,24.68]
[1746405323029,6.2285,145.13,145.06,6.893]
[1746405323332,6.8922,145.09,145.06,6.893]
[1746405324833,6.8924,145.08,145.06,6.893]
[1746405325632,6.8921,145.09,145.06,6.893]
[1746405327332,6.8921,145.09,145.07,6.8928]
[1746405327534,6.8916,145.1,145.07,6.8928]
[1746405328632,6.8919,145.09,145.07,6.8928]
[1746405331729,6.8918,145.1,145.07,6.8928]
[1746405332230,6.2285,145.13,145.07,6.8928]
[1746405334233,6.8916,145.1,145.07,6.8928]
[1746405336229,6.8907,145.12,145.04,24.68]
[1746405336533,570.72,145.17,145.04,24.68]
[1746405336735,6.89,145.14,145.1,6.8911]
[1746405336933,570.72,145.17,145.1,6.8911]
[1746405337132,570.72,145.17,145.09,24.64]
[1746405337334,6.8893,145.15,145.11,6.8906]
[1746405337730,570.72,145.17,145.11,6.8906]
[1746405338031,6.8891,145.15,145.11,6.8906]
[1746405338635,6.8896,145.14,145.1,6.8912]
[1746405339042,570.72,145.17,145.1,6.8912]
[1746405340235,24.64,145.17,145.1,6.8912]
[1746405341035,6.8898,145.14,145.1,6.8912]
[1746405341532,24.64,145.17,145.1,6.8912]
[1746405341736,6.8898,145.14,145.1,6.8912]
[1746405341938,24.64,145.17,145.09,24.64]
[1746405342335,6.8889,145.16,145.12,6.89]
[1746405342938,6.8889,145.16,145.13,6.89]
[1746405343539,6.8889,145.16,145.12,6.8903]
[1746405343735,6.8891,145.15,145.12,6.8903]
[1746405344736,6.8888,145.16,145.12,6.8903]
[1746405345039,6.1439,145.18,145.09,24.64]
[1746405345235,4.1671,145.18,145.09,24.64]
[1746405345436,6.8884,145.17,145.14,6.8893]
[1746405345835,6.8878,145.18,145.13,24.64]
[1746405346437,6.8878,145.18,145.15,6.8887]
[1746405349344,6.887,145.2,145.17,6.8881]
[1746405349541,5.9481,145.22,145.13,24.64]
[1746405349945,6.8869,145.2,145.17,6.888]
[1746405350446,6.8863,145.21,145.18,6.8872]
[1746405350743,24.62,145.26,145.17,24.62]
[1746405351446,24.62,145.26,145.19,6.887]
[1746405351949,6.8854,145.23,145.19,6.887]
[1746405352647,6.8849,145.24,145.21,6.8862]
[1746405353054,24.62,145.26,145.21,6.8862]
[1746405353237,6.8845,145.25,145.21,6.8862]
[1746405353545,6.8845,145.25,145.21,31.5062]
[1746405354150,6.2841,145.28,145.21,24.62]
[1746405355056,6.885,145.24,145.21,24.62]
[1746405357650,6.885,145.24,145.21,31.506]
[1746405357857,6.2841,145.28,145.21,24.62]
[1746405358445,6.8835,145.27,145.23,6.8851]
[1746405358849,6.2841,145.28,145.23,6.8851]
[1746405359251,6.8842,145.26,145.22,6.8855]
[1746405359454,6.2841,145.28,145.22,6.8855]
[1746405359648,6.2841,145.28,145.22,24.62]
[1746405360152,6.2841,145.28,145.19,24.62]
[1746405360651,4.2916,145.28,145.19,24.62]
[1746405361054,6.8839,145.26,145.22,6.8853]
[1746405361356,6.8839,145.26,145.22,24.62]
[1746405362257,6.8839,145.26,145.23,6.8851]
[1746405364855,4.2916,145.28,145.22,24.62]
[1746405365055,6.4161,145.28,145.22,24.62]
[1746405365254,6.4161,145.28,145.19,24.6]
[1746405365644,6.8855,145.23,145.19,31.4869]
[1746405366053,6.8867,145.2,145.19,24.6]
[1746405366352,24.6,145.25,145.16,24.6]
[1746405366556,24.6,145.25,145.14,24.6]
[1746405366755,24.6,145.25,145.14,31.4894]
[1746405367051,24.6,145.25,145.14,24.6]
[1746405367260,6.8855,145.23,145.19,6.8867]
[1746405367555,576.3561,145.28,145.19,24.6]
[1746405367856,6.8849,145.24,145.19,31.4868]
[1746405369456,6.8849,145.24,145.2,6.8865]
[1746405369859,6.8849,145.24,145.19,24.6]
[1746405370259,6.8849,145.24,145.2,6.8865]
[1746405370460,6.8854,145.23,145.2,6.8865]
[1746405371162,6.8849,145.24,145.21,6.8862]
[1746405371554,6.8849,145.24,145.19,24.6]
[1746405371755,6.8849,145.24,145.2,6.8864]
[1746405372559,6.8854,145.23,145.19,24.6]
[1746405373960,6.8854,145.23,145.19,31.4869]
[1746405374161,576.3561,145.28,145.19,24.6]
[1746405374362,576.3561,145.28,145.16,24.6]
[1746405374565,6.8869,145.2,145.16,31.4883]
[1746405374760,6.8869,145.2,145.16,24.6]
[1746405375061,24.6,145.23,145.17,6.8878]
[1746405375250,4.0094,145.22,145.16,24.6]
[1746405375451,6.0108,145.22,145.13,24.6]
[1746405376061,6.0108,145.22,145.13,31.4899]
[1746405376261,6.8884,145.17,145.13,31.4899]
[1746405376464,24.62,145.2,145.13,24.6]
[1746405376659,6.8879,145.18,145.13,24.6]
[1746405377264,6.8873,145.19,145.15,6.8887]
[1746405377458,24.62,145.2,145.15,6.8887]
[1746405377659,6.0108,145.22,145.13,24.6]
[1746405378261,6.8869,145.2,145.16,6.8883]
[1746405379055,6.8873,145.19,145.15,6.8889]
[1746405379260,6.0108,145.22,145.13,24.6]
[1746405379966,6.8879,145.18,145.14,6.8893]
[1746405381866,6.8873,145.19,145.15,6.8886]
[1746405382062,6.8873,145.19,145.13,24.6]
[1746405382269,6.0108,145.22,145.13,24.6]
[1746405382459,6.8863,145.21,145.18,6.8872]
[1746405382663,24.6,145.26,145.17,24.6]
[1746405382864,24.6,145.26,145.18,24.6]
[1746405383166,6.8857,145.23,145.19,6.8868]
[1746405383371,24.6,145.26,145.19,6.8868]
[1746405383667,6.8861,145.22,145.18,31.4874]
[1746405385366,24.6,145.26,145.11,6.042]
[1746405385570,6.8882,145.17,145.12,24.6]
[1746405385768,24.6,145.21,145.12,24.6]
[1746405385970,6.8878,145.18,145.13,6.8897]
[1746405386169,6.1083,145.2,145.12,24.6]
[1746405386566,6.8879,145.18,145.14,6.8894]
[1746405386971,6.1083,145.2,145.12,24.6]
[1746405387472,6.8884,145.17,145.13,6.8899]
[1746405387669,6.1083,145.2,145.12,24.6]
[1746405388170,6.1083,145.2,145.09,24.6]
[1746405388567,6.8878,145.18,145.1,4.2392]
[1746405389170,6.8882,145.17,145.13,6.8897]
[1746405389369,6.8882,145.17,145.13,31.4897]
[1746405390173,6.8882,145.17,145.14,6.8894]
[1746405390471,30.7083,145.2,145.13,24.6]
[1746405391670,6.888,145.18,145.13,24.6]
[1746405392171,6.888,145.18,145.14,6.8894]
[1746405393367,6.8881,145.17,145.14,6.8894]
[1746405394178,6.8887,145.16,145.13,31.4898]
[1746405394574,6.8887,145.16,145.13,24.6]
[1746405394873,6.8892,145.15,145.13,24.6]
[1746405395868,30.7083,145.2,145.1,24.6]
[1746405397279,6.8903,145.13,145.1,24.6]
[1746405397779,6.8903,145.13,145.1,31.4912]
[1746405399578,6.8905,145.12,145.1,24.6]
[1746405400487,6.8905,145.12,145.08,6.8922]
[1746405400979,6.8911,145.11,145.08,6.8922]
[1746405401185,24.6,145.16,145.07,170.12657897]
[1746405401385,4.1646,145.15,145.07,170.12657897]
[1746405401588,6.8917,145.1,145.07,170.12657897]
[1746405403291,6.8912,145.11,145.07,177.01927897]
[1746405403891,6.8912,145.11,145.08,6.8923]
[1746405404595,6.8906,145.12,145.09,6.8918]
[1746405404796,24.6,145.16,145.07,170.12657897]
[1746405405591,24.6,145.16,145.11,6.8907]
[1746405405592,6.8897,145.14,145.11,6.8907]
[1746405406191,6.89,145.13,145.11,6.8907]
[1746405406494,24.6,145.16,145.11,6.8907]
[1746405407095,6.8894,145.15,145.11,6.8907]
[1746405407392,24.6,145.16,145.11,6.8907]
[1746405408297,6.8896,145.14,145.11,6.8907]
[1746405411496,6.8892,145.15,145.12,6.8904]
[1746405411895,24.6,145.16,145.07,170.12657897]
[1746405413500,6.89,145.13,145.1,6.8911]
[1746405414299,6.8897,145.14,145.11,6.8909]
[1746405420603,6.8897,145.14,145.12,6.8904]
[1746405420807,6.8897,145.14,145.07,170.12657897]
[1746405421105,6.8897,145.14,145.11,6.8906]
[1746405424802,24.6,145.16,145.12,6.89]
[1746405424803,6.8891,145.15,145.12,6.89]
[1746405425109,4.1362,145.19,145.11,25.04]
[1746405425300,4.1362,145.19,145.12,25.04]
[1746405425495,6.8884,145.17,145.14,6.8893]
[1746405426911,4.1362,145.19,145.12,25.04]
[1746405427614,4.1362,145.19,145.12,31.9303]
[1746405428112,6.889,145.16,145.12,31.9303]
[1746405428710,6.8891,145.15,145.12,31.9303]
[1746405429613,6.8896,145.14,145.12,25.04]
[1746405429807,6.8896,145.14,145.09,25.04]
[1746405430208,6.8893,145.15,145.12,6.8903]
[1746405432316,6.8896,145.14,145.11,6.8907]
[1746405432522,6.8896,145.14,145.09,25.04]
[1746405433016,6.8896,145.14,145.11,6.8905]
[1746405434216,6.8896,145.14,145.12,6.8904]
[1746405434418,6.8896,145.14,145.09,25.04]
[1746405434825,6.8896,145.14,145.11,6.8907]
[1746405435113,6.8901,145.13,145.11,6.8907]
[1746405435319,4.1362,145.19,145.11,6.8907]
[1746405436219,4.1362,145.19,145.12,6.8904]
[1746405436418,4.1362,145.19,145.09,25.04]
[1746405437420,25.04,145.18,145.09,25.04]
[1746405437620,6.8893,145.15,145.12,6.8902]
[1746405437922,25.04,145.18,145.09,25.04]
[1746405438123,4.1362,145.19,145.09,25.04]
[1746405438322,4.1362,145.19,145.1,4.0339]
[1746405438518,25.04,145.2,145.1,4.0339]
[1746405438718,25.04,145.2,145.16,6.8885]
[1746405439522,6.8872,145.19,145.16,6.8885]
[1746405439720,2.059,145.22,145.14,25.04]
[1746405440525,2.059,145.22,145.16,6.8884]
[1746405440824,2.059,145.22,145.14,25.04]
[1746405441123,2.059,145.22,145.15,6.8887]
[1746405441724,6.8877,145.18,145.15,6.8887]
[1746405441928,2.059,145.22,145.14,31.9294]
[1746405442122,2.059,145.22,145.08,1.9984]
[1746405442326,6.8898,145.14,145.09,24.84]
[1746405442520,6.8898,145.14,145.11,6.8909]
[1746405443722,6.8901,145.13,145.1,6.8912]
[1746405444022,24.84,145.13,145.07,145.52657897]
[1746405444421,2.0408,145.12,145.07,145.52657897]
[1746405444926,6.8916,145.1,145.07,145.52657897]
[1746405445126,2.0408,145.12,145.07,152.41927897]
[1746405445424,6.8911,145.11,145.07,152.41927897]
[1746405446826,6.8916,145.1,145.07,152.41927897]
[1746405447021,6.8916,145.1,145.07,145.52657897]
[1746405447426,6.8912,145.11,145.07,152.41907897]
[1746405447727,6.8912,145.11,145.07,145.52657897]
[1746405448025,6.8906,145.12,145.08,6.892]
[1746405448524,24.84,145.13,145.07,145.52657897]
[1746405449024,6.8912,145.11,145.07,152.41907897]
[1746405450429,6.8915,145.1,145.07,152.41907897]
[1746405450728,24.84,145.13,145.07,145.52657897]
[1746405452329,6.8919,145.1,145.07,145.52657897]
[1746405453128,6.892,145.09,145.07,145.52657897]
[1746405453528,24.84,145.13,145.07,145.52657897]
[1746405453729,2.1237,145.12,145.07,145.52657897]
[1746405454629,6.8921,145.09,145.07,145.52657897]
[1746405456533,2.1237,145.12,145.07,152.41927897]
[1746405456735,24.84,145.13,145.07,145.52657897]
[1746405457129,6.8913,145.11,145.07,152.41897897]
[1746405458836,6.8913,145.11,145.08,6.8923]
[1746405459428,6.8906,145.12,145.08,6.8923]
[1746405459929,24.84,145.13,145.08,6.8923]
[1746405461233,6.891,145.11,145.08,6.8923]
[1746405461835,24.84,145.13,145.07,145.52657897]
[1746405462038,2.1,145.15,145.07,145.52657897]
[1746405462429,6.8902,145.13,145.09,6.8914]
[1746405464640,6.8902,145.13,145.1,6.8913]
[1746405466641,6.8896,145.14,145.11,6.8908]
[1746405466836,2.1714,145.2,145.1,24.84]
[1746405467035,24.84,145.19,145.1,24.84]
[1746405467235,6.8889,145.16,145.12,6.8901]
[1746405468140,6.8889,145.16,145.13,6.8899]
[1746405471239,26.801,145.22,145.14,24.66]
[1746405471644,6.8871,145.2,145.16,6.8883]
[1746405472247,6.8871,145.2,145.14,24.66]
[1746405473444,6.8864,145.21,145.14,24.66]
[1746405474147,6.8867,145.2,145.14,24.66]
[1746405474947,6.8867,145.2,145.18,6.8876]
[1746405479151,24.66,145.25,145.14,24.66]
[1746405479653,6.8865,145.21,145.14,24.66]
[1746405479854,6.8865,145.21,145.17,6.8876]
[1746405480157,6.8865,145.21,145.14,24.66]
[1746405480449,6.8867,145.2,145.17,6.8878]
[1746405483552,6.8864,145.21,145.14,24.66]
[1746405483853,6.8864,145.21,145.15,2.0282]
[1746405484055,6.8864,145.21,145.18,6.8873]
[1746405485954,24.66,145.25,145.15,2.0282]
[1746405486156,24.66,145.25,145.18,24.64]
[1746405486650,6.885,145.24,145.2,6.8866]
[1746405487250,6.885,145.24,145.21,6.8861]
[1746405488054,24.64,145.28,145.22,6.8857]
[1746405488354,24.64,145.28,145.22,24.64]
[1746405488653,6.8842,145.26,145.23,6.885]
[1746405489354,6.8835,145.27,145.24,6.8847]
[1746405490153,6.8835,145.27,145.23,6.885]
[1746405490356,24.64,145.28,145.22,24.64]
[1746405490754,24.64,145.28,145.22,31.5253]
[1746405491352,6.8841,145.26,145.22,31.5253]
[1746405491548,6.8841,145.26,145.23,6.8852]
[1746405495458,6.8835,145.27,145.24,6.8846]
[1746405495958,2.0982,145.29,145.22,24.64]
[1746405496759,6.8841,145.26,145.23,6.885]
[1746405497353,6.8841,145.26,145.22,31.5255]
[1746405497962,6.8841,145.26,145.23,6.8852]
[1746405498362,2.0982,145.29,145.22,24.64]
[1746405498562,2.0982,145.29,145.18,24.64]
[1746405498956,6.8856,145.23,145.2,6.8867]
[1746405499359,6.8846,145.25,145.18,24.64]
[1746405499557,24.64,145.27,145.22,6.8854]
[1746405499755,24.64,145.27,145.18,24.64]
[1746405499960,6.8855,145.23,145.2,6.8865]
[1746405500260,24.64,145.27,145.18,24.64]
[1746405500460,26.7382,145.29,145.18,24.64]
[1746405500662,6.8845,145.25,145.21,6.886]
[1746405500855,6.8845,145.25,145.18,24.64]
[1746405501160,6.884,145.26,145.18,24.64]
[1746405501762,6.8832,145.28,145.25,6.884]
[1746405501963,2.0982,145.29,145.25,6.884]
[1746405502151,2.0982,145.29,145.23,24.64]
[1746405502351,6.8834,145.27,145.24,6.8845]
[1746405502759,6.8834,145.27,145.23,24.64]
[1746405503063,6.883,145.28,145.25,6.884]
[1746405503363,2.0982,145.29,145.25,6.884]
[1746405503563,6.883,145.28,145.25,6.884]
[1746405504667,6.8834,145.27,145.25,6.884]
[1746405504866,2.0982,145.29,145.25,6.884]
[1746405505167,6.8832,145.28,145.25,6.884]
[1746405505466,2.0982,145.29,145.24,6.8845]
[1746405505765,6.8834,145.27,145.23,24.64]
[1746405505960,2.0982,145.29,145.23,24.64]
[1746405506168,2.0982,145.29,145.25,6.884]
[1746405506766,6.8831,145.28,145.25,6.884]
[1746405508267,8.9808,145.29,145.26,6.8838]
[1746405508467,6.8826,145.29,145.26,6.8838]
[1746405509169,4.1653,145.3,145.23,24.64]
[1746405510469,6.8831,145.28,145.25,6.8841]
[1746405512271,6.8825,145.29,145.26,6.8838]
[1746405512472,4.1653,145.3,145.26,6.8838]
[1746405512674,4.1653,145.3,145.23,24.64]
[1746405513072,2.0416,145.29,145.2,24.62]
[1746405513374,6.8851,145.24,145.2,31.5065]
[1746405514768,6.8843,145.26,145.2,24.62]
[1746405515276,24.62,145.28,145.2,24.62]
[1746405516176,6.8846,145.25,145.21,6.8859]
[1746405516372,24.62,145.28,145.2,24.62]
[1746405517074,6.8845,145.25,145.21,6.886]
[1746405517377,2.0416,145.29,145.2,24.62]
[1746405517674,6.883,145.28,145.24,6.8844]
[1746405517877,4.1653,145.3,145.24,24.64]
[1746405518875,4.1653,145.3,145.25,6.884]
[1746405520176,6.8829,145.28,145.25,6.884]
[1746405520775,4.1653,145.3,145.26,6.8837]
[1746405520971,6.8827,145.29,145.24,24.64]
[1746405521278,6.8827,145.29,145.25,6.8841]
[1746405521676,6.8827,145.29,145.24,24.64]
[1746405521879,6.8827,145.29,145.26,6.8836]
[1746405522976,6.883,145.28,145.25,6.8842]
[1746405523183,24.64,145.31,145.24,24.64]
[1746405523579,6.8822,145.3,145.26,6.8835]
[1746405523974,28.7608,145.34,145.24,24.64]
[1746405524275,6.8822,145.3,145.27,6.8829]
[1746405524978,6.8822,145.3,145.26,6.8836]
[1746405525478,28.7608,145.34,145.25,6.8842]
[1746405526073,6.8827,145.29,145.25,6.8842]
[1746405526274,28.7608,145.34,145.24,24.64]
[1746405526678,6.8833,145.28,145.24,24.64]
[1746405526878,6.8833,145.28,145.24,31.5248]
[1746405528380,6.8833,145.28,145.25,6.8843]
[1746405531283,6.8834,145.27,145.24,31.5246]
[1746405531484,28.7608,145.34,145.24,24.64]
[1746405531979,6.8843,145.25,145.22,6.8854]
[1746405532178,24.64,145.29,145.21,569.84]
[1746405532381,6.1651,145.28,145.21,569.84]
[1746405532582,6.8851,145.24,145.21,31.5259]
[1746405534183,6.8845,145.25,145.22,6.8857]
[1746405534376,6.1651,145.28,145.21,24.64]
[1746405534783,6.8842,145.26,145.23,6.8851]
[1746405535892,6.8833,145.27,145.24,6.8845]
[1746405536193,6.1651,145.28,145.21,24.64]
[1746405536493,6.8841,145.26,145.23,6.885]
[1746405536686,6.8841,145.26,145.21,24.64]
[1746405537192,6.8841,145.26,145.22,6.8853]
[1746405538794,6.8844,145.25,145.22,6.8853]
[1746405539089,6.1651,145.28,145.23,6.8851]
[1746405539393,6.8836,145.27,145.24,6.8846]
[1746405539595,6.8836,145.27,145.21,24.64]
[1746405540394,4.1116,145.28,145.21,24.64]
[1746405540895,6.8846,145.25,145.21,31.5259]
[1746405541493,4.1116,145.28,145.21,31.5259]
[1746405541993,6.8849,145.24,145.21,24.64]
[1746405542197,4.1116,145.28,145.21,24.64]
[1746405542394,2.0147,145.27,145.21,24.64]
[1746405542696,6.8847,145.25,145.21,24.64]
[1746405543489,2.0147,145.27,145.21,24.64]
[1746405543695,6.8853,145.23,145.21,24.64]
[1746405543891,2.0147,145.27,145.18,24.66]
[1746405544093,6.8865,145.21,145.17,31.5479]
[1746405544995,6.8868,145.2,145.17,24.66]
[1746405545198,24.66,145.25,145.17,24.66]
[1746405546797,6.887,145.2,145.17,24.66]
[1746405547199,24.66,145.25,145.17,24.66]
[1746405547398,6.8866,145.21,145.17,31.5478]
[1746405547799,24.66,145.25,145.17,24.66]
[1746405548398,6.885,145.24,145.2,6.8862]
[1746405548598,6.885,145.24,145.17,24.66]
[1746405549400,2.0147,145.27,145.17,24.66]
[1746405549999,6.8853,145.23,145.2,6.8866]
[1746405551501,6.8858,145.22,145.19,6.8869]
[1746405552898,6.8858,145.22,145.2,6.8866]
[1746405553202,2.0147,145.27,145.17,24.66]
[1746405554003,6.8848,145.24,145.21,6.8859]
[1746405555407,6.8852,145.23,145.17,24.66]
[1746405555599,2.0147,145.27,145.17,24.66]
[1746405556217,6.8849,145.24,145.21,6.8859]
[1746405556516,2.0147,145.27,145.17,24.66]
[1746405557602,6.8845,145.25,145.22,6.8853]
[1746405557909,6.8845,145.25,145.21,24.66]
[1746405558106,6.8848,145.24,145.21,24.66]
[1746405558302,28.7716,145.28,145.21,24.66]
[1746405558506,2.06,145.27,145.18,24.66]
[1746405558710,6.8857,145.22,145.19,6.8869]
[1746405559414,6.8862,145.21,145.18,31.5475]
[1746405559811,2.06,145.27,145.18,24.66]
[1746405560517,6.8865,145.21,145.18,24.66]
[1746405561315,6.8865,145.21,145.18,31.5476]
[1746405561715,6.8865,145.21,145.18,24.66]
[1746405562321,6.8867,145.2,145.18,24.66]
[1746405563718,6.8867,145.2,145.16,6.8883]
[1746405564219,6.8867,145.2,145.15,24.64]
[1746405564919,6.8867,145.2,145.17,6.8878]
[1746405569220,6.8872,145.19,145.17,6.8878]
[1746405569416,6.8872,145.19,145.15,24.64]
[1746405569821,6.8872,145.19,145.16,6.8882]
[1746405571417,6.8872,145.19,145.15,24.64]
[1746405571617,6.8868,145.2,145.17,6.888]
[1746405571821,28.6144,145.23,145.17,6.888]
[1746405572121,6.8867,145.2,145.17,6.888]
[1746405574525,6.8867,145.2,145.16,6.8883]
[1746405574923,6.8872,145.19,145.16,6.8883]
[1746405576023,28.6144,145.23,145.15,24.64]
[1746405576323,2.0516,145.22,145.15,24.64]
[1746405576721,6.888,145.18,145.15,24.64]
[1746405577925,6.888,145.18,145.15,31.5287]
[1746405578824,2.0516,145.22,145.16,6.8883]
[1746405578825,6.8867,145.2,145.16,6.8883]
[1746405579022,6.8867,145.2,145.15,24.64]
[1746405579234,2.0516,145.22,145.15,24.64]
[1746405579923,6.8867,145.2,145.16,6.8883]
[1746405580420,2.0516,145.22,145.16,6.8883]
[1746405582825,6.8874,145.19,145.16,6.8883]
[1746405583027,2.0516,145.22,145.15,24.64]
[1746405583627,2.0516,145.22,145.12,24.64]
[1746405584227,6.8895,145.14,145.11,6.8907]
[1746405588430,6.89,145.13,145.1,6.8912]
[1746405589831,6.89,145.13,145.11,6.8908]
[1746405590731,6.89,145.13,145.09,24.64]
[1746405590732,6.89,145.13,145.1,6.8912]
[1746405591132,4.1701,145.16,145.09,24.64]
[1746405591334,6.2972,145.16,145.09,31.5317]
[1746405592127,6.2972,145.16,145.1,6.8913]
[1746405593330,6.2972,145.16,145.09,24.64]
[1746405593533,24.64,145.17,145.09,24.64]
[1746405594033,31.5282,145.17,145.09,24.64]
[1746405594534,31.5282,145.17,145.14,6.8893]
[1746405594734,6.8886,145.16,145.09,24.64]
[1746405595235,6.8886,145.16,145.13,6.8895]
[1746405595534,6.8886,145.16,145.09,24.64]
[1746405595734,6.8882,145.17,145.09,24.64]
[1746405595934,6.8882,145.17,145.14,6.8892]
[1746405596534,6.8887,145.16,145.13,6.8898]
[1746405597636,6.8893,145.15,145.12,6.8903]
[1746405598235,4.1681,145.19,145.09,24.64]
[1746405598837,6.89,145.14,145.1,6.8912]
[1746405599936,6.89,145.14,145.11,6.8908]
[1746405600638,6.8892,145.15,145.12,6.8904]
[1746405600835,24.64,145.16,145.09,24.64]
[1746405601235,6.8897,145.14,145.11,6.8906]
[1746405602936,6.8897,145.14,145.12,6.8904]
[1746405603138,4.1681,145.19,145.09,24.64]
[1746405603339,4.1681,145.19,145.1,2.1127]
[1746405603635,6.8884,145.17,145.1,2.1127]
[1746405603839,4.1681,145.19,145.1,2.1127]
[1746405604136,6.8886,145.16,145.13,6.8897]
[1746405606936,4.1681,145.19,145.14,6.8895]
[1746405607538,6.8885,145.17,145.14,6.8895]
[1746405607834,4.1681,145.19,145.15,6.889]
[1746405608439,6.8879,145.18,145.15,6.889]
[1746405610239,6.8882,145.17,145.14,6.8893]
[1746405611640,4.1681,145.19,145.13,24.64]
[1746405611939,4.1681,145.19,145.1,24.64]
[1746405612139,6.8895,145.14,145.11,6.8907]
[1746405612837,6.8893,145.15,145.12,6.8905]
[1746405613541,6.8895,145.14,145.12,6.8905]
[1746405614645,6.8893,145.15,145.12,6.8905]
[1746405614942,4.1681,145.19,145.13,6.8899]
[1746405615142,6.889,145.15,145.1,24.64]
[1746405615745,6.889,145.15,145.12,6.8902]
[1746405618445,6.8896,145.14,145.11,6.8907]
[1746405620242,6.89,145.13,145.1,31.5312]
[1746405621646,6.8905,145.12,145.1,24.64]
[1746405622240,6.8912,145.11,145.08,6.8921]
[1746405622545,2.0371,145.15,145.07,385.64]
[1746405622744,4.2027,145.14,145.07,385.64]
[1746405622936,4.2027,145.14,145.07,24.64]
[1746405623138,6.8919,145.09,145.07,24.64]
[1746405623447,4.2027,145.14,145.07,24.64]
[1746405623651,6.8915,145.1,145.07,31.5326]
[1746405624053,4.2027,145.14,145.07,24.64]
[1746405624349,6.8919,145.09,145.07,24.64]
[1746405626148,4.2027,145.14,145.07,24.64]
[1746405627345,4.2027,145.14,145.07,31.5326]